bitfinex/quotes_SOLUSD_20260115
["timestamp","ask_amount","ask_price","bid_price","bid_amount"]
[1768491326528,19.90888291,142.68,142.65,10.97476017]
[1768491326743,0.1,142.68,142.67,10.97476017]
[1768491326923,0.1,142.69,142.67,10.94476018]
[1768491327119,0.1,142.69,142.68,10.97476017]
[1768491327622,0.1,142.69,142.67,2.43816671]
[1768491327850,0.1,142.69,142.66,2.43816671]
[1768491328031,0.1,142.69,142.66,10.97476017]
[1768491328232,0.1,142.69,142.67,10.97476017]
[1768491328743,2.49686229,142.69,142.65,7.01001255]
[1768491328922,2.49686229,142.69,142.66,10.97476017]
[1768491329226,9.5053701,142.69,142.65,10.97476017]
[1768491329752,2.39686229,142.68,142.62,2.43816671]
[1768491329957,2.39686229,142.67,142.61,2.43816671]
[1768491330160,2.39686229,142.66,142.62,10.97476017]
[1768491330945,13.37162246,142.63,142.59,7.01295478]
[1768491331245,9.40830176,142.63,142.58,20.42636509]
[1768491331432,2.39686229,142.63,142.59,10.97476017]
[1768491331633,2.39686229,142.63,142.58,9.45160492]
[1768491332027,2.39686229,142.63,142.59,10.97476017]
[1768491332343,9.40807862,142.63,142.59,10.97476017]
[1768491332532,2.39686229,142.68,142.62,13.41292688]
[1768491332736,24.53041771,142.68,142.63,10.97476017]
[1768491332921,2.39686229,142.67,142.63,10.94476018]
[1768491333121,9.40637996,142.67,142.62,9.44969039]
[1768491333341,9.40637996,142.67,142.63,10.97476017]
[1768491333922,2.39686229,142.66,142.63,10.97476017]
[1768491334125,2.39686229,142.65,142.6,12.78]
[1768491334330,2.39686229,142.65,142.61,10.97476017]
[1768491334731,10.97476017,142.66,142.61,10.97476017]
[1768491334732,2.39686229,142.66,142.62,10.97476017]
[1768491335340,7.00882742,142.68,142.64,6.73680672]
[1768491335647,7.10828885,142.69,142.65,2.43816671]
[1768491335829,7.10828885,142.69,142.65,6.73680672]
[1768491336029,7.10828885,142.69,142.63,15.21816671]
[1768491336241,7.10828885,142.69,142.65,6.73680672]
[1768491336446,13.84509557,142.69,142.64,6.73680672]
[1768491336748,6.73680672,142.67,142.61,2.43816671]
[1768491336937,24.62878783,142.69,142.62,6.73680672]
[1768491337132,6.73680672,142.67,142.62,6.73680672]
[1768491337333,9.40653563,142.66,142.61,2.43816671]
[1768491337550,6.73680672,142.65,142.6,6.73680672]
[1768491337754,2.39686229,142.64,142.59,28.9678816]
[1768491338053,2.39686229,142.64,142.59,16.1878816]
[1768491338258,2.39686229,142.64,142.59,9.17497343]
[1768491338629,2.39686229,142.64,142.59,16.18806109]
[1768491339646,7.01114772,142.63,142.59,9.17497343]
[1768491340158,2.39686229,142.62,142.57,16.18888162]
[1768491340361,2.39686229,142.62,142.57,9.4520749]
[1768491340531,2.39686229,142.62,142.58,6.73680672]
[1768491340731,2.39686229,142.62,142.55,2.43816671]
[1768491340732,2.39686229,142.6,142.56,6.73680672]
[1768491341245,2.39686229,142.62,142.57,6.73680672]
[1768491341457,2.39686229,142.62,142.58,6.73680672]
[1768491341634,7.01213098,142.61,142.57,9.17497343]
[1768491342044,7.01213098,142.61,142.58,6.73680672]
[1768491343049,7.01178027,142.62,142.59,6.73680672]
[1768491343248,7.01178027,142.62,142.58,9.17497343]
[1768491343552,9.40816745,142.63,142.6,6.73680672]
[1768491343958,9.40816745,142.63,142.59,9.17497343]
[1768491344140,9.40816745,142.63,142.59,16.18803195]
[1768491344454,7.01072191,142.64,142.61,9.17497343]
[1768491345563,7.01072191,142.64,142.6,2.43816671]
[1768491345735,7.01072191,142.64,142.6,9.17497343]
[1768491345939,9.4075842,142.64,142.58,2.43816671]
[1768491346139,2.39686229,142.63,142.58,9.17497343]
[1768491346439,9.13366901,142.63,142.58,9.17497343]
[1768491346640,2.39686229,142.63,142.58,9.17497343]
[1768491346956,2.39686229,142.61,142.57,6.73680672]
[1768491347256,24.5373624,142.64,142.57,9.17497343]
[1768491347257,9.13366901,142.63,142.57,9.17497343]
[1768491347449,2.39686229,142.63,142.59,6.73680672]
[1768491347858,13.74752863,142.64,142.59,2.43816671]
[1768491348044,9.40850161,142.62,142.58,6.73680672]
[1768491348240,9.40850161,142.62,142.57,16.18894785]
[1768491348431,9.40850161,142.62,142.59,6.73680672]
[1768491349053,9.40850161,142.62,142.58,16.18852621]
[1768491349257,7.01163932,142.62,142.59,6.73680672]
[1768491349440,7.01114772,142.63,142.59,6.73680672]
[1768491349641,9.40801001,142.63,142.59,6.73680672]
[1768491351062,9.40801001,142.63,142.59,2.4089516]
[1768491351358,9.40801001,142.63,142.59,6.73680672]
[1768491352065,2.55389226,142.62,142.58,9.14575832]
[1768491352452,31.27582375,142.63,142.59,2.4089516]
[1768491352652,27.09290929,142.63,142.59,9.14575832]
[1768491353053,7.01085655,142.64,142.6,9.14575832]
[1768491353251,7.01085655,142.64,142.61,9.14575832]
[1768491353546,9.56474881,142.64,142.6,9.14575832]
[1768491354065,9.56474881,142.64,142.61,6.73680672]
[1768491354242,7.01085655,142.64,142.61,6.73680672]
[1768491354637,7.01085655,142.64,142.6,9.14575832]
[1768491354962,7.01085655,142.64,142.61,9.14575832]
[1768491355961,24.53597242,142.65,142.61,9.14575832]
[1768491356140,24.53597242,142.65,142.62,2.4089516]
[1768491356642,7.01016473,142.65,142.62,9.14575832]
[1768491356945,2.55389226,142.62,142.57,6.73680672]
[1768491357146,2.55389226,142.62,142.56,2.4089516]
[1768491357147,2.55389226,142.6,142.56,6.73680672]
[1768491357342,2.55389226,142.59,142.55,6.73680672]
[1768491357558,2.55389226,142.58,142.53,9.14575832]
[1768491357760,2.55389226,142.58,142.53,16.16179627]
[1768491357961,9.56770558,142.58,142.54,16.16124511]
[1768491358447,9.56770558,142.58,142.54,9.14575832]
[1768491358860,9.56770558,142.58,142.54,2.4089516]
[1768491359246,2.55389226,142.57,142.52,2.4089516]
[1768491359447,9.29069898,142.57,142.52,9.14575832]
[1768491359667,24.54782931,142.58,142.5,7.01735109]
[1768491359668,2.55389226,142.55,142.5,2.4089516]
[1768491359969,9.56938728,142.55,142.51,6.73680672]
[1768491360199,17.53601251,142.57,142.51,6.73680672]
[1768491360200,7.01464822,142.56,142.52,6.73680672]
[1768491360366,9.56854048,142.56,142.52,9.14575832]
[1768491360569,9.56854048,142.56,142.53,6.73680672]
[1768491360872,7.01428708,142.57,142.54,6.73680672]
[1768491362550,2.55389226,142.56,142.52,6.73680672]
[1768491363262,2.55389226,142.56,142.52,9.14575832]
[1768491364578,7.01508242,142.55,142.52,9.14575832]
[1768491365284,7.01508242,142.55,142.52,2.4089516]
[1768491365579,9.56865628,142.56,142.52,9.14575832]
[1768491366277,2.55389226,142.54,142.5,2.4089516]
[1768491366459,7.01655907,142.52,142.48,9.14575832]
[1768491366664,7.01655907,142.52,142.48,16.16427061]
[1768491366865,7.01655907,142.52,142.49,2.4089516]
[1768491368079,9.57045133,142.52,142.46,19.79932554]
[1768491368380,9.57143611,142.5,142.46,6.73680672]
[1768491368573,9.57143611,142.5,142.45,9.14575832]
[1768491369079,9.57143611,142.5,142.46,9.14575832]
[1768491369277,7.01754385,142.5,142.46,2.4089516]
[1768491369465,9.57143611,142.5,142.46,2.4089516]
[1768491370176,9.57143611,142.5,142.46,9.14575832]
[1768491370486,9.57143611,142.5,142.46,2.4089516]
[1768491370690,9.57143611,142.5,142.46,9.14575832]
[1768491370873,9.57143611,142.5,142.46,2.4089516]
[1768491371077,2.55389226,142.49,142.44,15.2089516]
[1768491371379,2.55389226,142.48,142.43,9.24575832]
[1768491371781,2.55389226,142.47,142.43,0.1]
[1768491372681,9.57329975,142.47,142.43,6.83680672]
[1768491372886,7.01867862,142.48,142.44,2.4089516]
[1768491373079,7.01867862,142.48,142.43,13.85773761]
[1768491373080,7.01867862,142.48,142.45,9.14575832]
[1768491374091,9.57200125,142.49,142.45,9.14575832]
[1768491374392,7.01810899,142.49,142.46,9.14575832]
[1768491374891,7.01810899,142.49,142.46,2.4089516]
[1768491375188,7.01810899,142.49,142.45,9.14575832]
[1768491375387,7.01810899,142.49,142.46,9.14575832]
[1768491375599,7.01810899,142.49,142.47,2.4089516]
[1768491375967,7.01754385,142.5,142.47,2.4089516]
[1768491376898,7.01754385,142.5,142.47,9.14575832]
[1768491377193,7.01754385,142.5,142.47,2.4089516]
[1768491377989,58.62359464,142.53,142.48,9.14575832]
[1768491378294,58.62359464,142.53,142.47,7.01895094]
[1768491378295,63.08594185,142.53,142.5,2.4089516]
[1768491378599,63.08594185,142.53,142.48,2.4089516]
[1768491378600,2.55389226,142.52,142.48,2.4089516]
[1768491378767,9.29069898,142.52,142.48,2.4089516]
[1768491379584,2.55389226,142.52,142.48,2.4089516]
[1768491379903,9.5708728,142.52,142.48,9.14575832]
[1768491380077,9.5708728,142.52,141.46,117.2795187]
[1768491380078,6.96469757,142.49,142.43,9.24575832]
[1768491380280,6.73680672,142.48,142.43,9.24575832]
[1768491380595,6.96469757,142.49,142.44,2.4089516]
[1768491381001,6.73680672,142.47,142.43,0.1]
[1768491382182,7.01951424,142.46,142.43,0.1]
[1768491382487,7.01951424,142.46,142.43,2.56739476]
[1768491383683,7.01902154,142.47,142.43,2.56739476]
[1768491384382,7.01902154,142.47,142.43,9.30420148]
[1768491384584,7.01902154,142.47,142.43,2.56739476]
[1768491386279,7.01873664,142.48,142.45,2.68189069]
[1768491386903,7.01705143,142.51,142.47,2.68189069]
[1768491387392,7.01705143,142.51,142.48,2.68189069]
[1768491387699,63.08645018,142.52,142.48,2.68189069]
[1768491388095,63.08645018,142.52,142.49,2.68189069]
[1768491388701,69.8232569,142.52,142.47,2.68189069]
[1768491388990,63.08645018,142.52,142.47,13.75569086]
[1768491389178,63.08645018,142.52,142.48,2.68189069]
[1768491389384,7.0167478,142.52,142.48,2.68189069]
[1768491390493,24.2774852,142.53,142.48,2.68189069]
[1768491390697,17.54067848,142.53,142.48,2.68189069]
[1768491390897,0.29356805,142.52,142.47,9.41869741]
[1768491391301,24.2774852,142.53,142.48,2.68189069]
[1768491391610,7.03725047,142.51,142.46,2.68189069]
[1768491391906,0.30724047,142.52,142.47,2.68189069]
[1768491392083,6.73680672,142.51,142.47,2.68189069]
[1768491392282,0.30724047,142.52,142.47,2.68189069]
[1768491392492,7.04404719,142.52,142.47,2.68189069]
[1768491392692,7.01705143,142.51,142.47,2.68189069]
[1768491394102,7.01705143,142.51,142.48,2.68189069]
[1768491394685,17.54067848,142.53,142.49,2.68189069]
[1768491394983,24.55674527,142.53,142.49,2.68189069]
[1768491395393,24.55674527,142.53,142.49,15.48189069]
[1768491395592,7.01606679,142.53,142.5,2.68189069]
[1768491396811,7.01557457,142.54,142.51,2.68189069]
[1768491398286,7.01557457,142.54,142.5,2.68189069]
[1768491398798,35.86991822,142.54,142.5,2.68189069]
[1768491399195,35.5235058,142.54,142.5,2.68189069]
[1768491399396,24.554511,142.54,142.5,2.68189069]
[1768491400400,67.39137833,142.55,142.51,13.65088549]
[1768491400401,63.08497096,142.55,142.51,13.65088549]
[1768491400904,63.08497096,142.55,142.51,2.68189069]
[1768491401486,63.08497096,142.55,142.51,13.65088549]
[1768491402008,63.08497096,142.55,142.52,2.68189069]
[1768491402594,0.37105861,142.59,142.53,2.68189069]
[1768491402791,17.90273366,142.6,142.55,2.68189069]
[1768491402995,28.87172846,142.6,142.55,2.68189069]
[1768491403497,7.01311452,142.59,142.55,13.65088549]
[1768491403810,7.01311452,142.59,142.56,2.68189069]
[1768491404410,7.01311452,142.59,142.56,2.6518907]
[1768491404798,7.42607565,142.59,142.55,12.8]
[1768491404996,0.41881006,142.55,142.48,17.54577586]
[1768491405261,11.38780486,142.53,142.47,7.0187379]
[1768491405405,11.38780486,142.53,142.42,0.2]
[1768491405406,11.38780486,142.51,142.42,0.2]
[1768491405594,18.40534871,142.5,142.44,12.8]
[1768491405796,11.38780486,142.49,142.44,12.8]
[1768491406003,11.3935866,142.48,142.44,12.8]
[1768491406420,11.3935866,142.47,142.44,12.8]
[1768491406632,11.3935866,142.47,142.43,0.1]
[1768491406924,10.9689948,142.46,142.43,0.1]
[1768491407591,17.98900182,142.45,142.43,1e-08]
[1768491408317,7.02000702,142.45,142.42,1e-08]
[1768491408498,7.02000702,142.45,142.42,2.6818907]
[1768491409106,18.14408856,142.49,142.43,9.70284127]
[1768491409107,24.56361516,142.49,142.43,9.70284127]
[1768491409291,35.9741516,142.49,142.43,2.68189069]
[1768491409504,25.0051568,142.49,142.44,2.68189069]
[1768491409706,35.9741516,142.49,142.44,2.68189069]
[1768491411011,35.53260996,142.49,142.44,2.68189069]
[1768491411213,24.56361516,142.49,142.44,2.68189069]
[1768491411398,35.53260996,142.49,142.44,2.68189069]
[1768491412000,10.9689948,142.48,142.44,2.68189069]
[1768491412220,10.9689948,142.47,142.42,15.51127151]
[1768491412418,11.43156498,142.48,142.43,2.7112715]
[1768491412606,35.53260996,142.49,142.44,2.7112715]
[1768491412798,7.01803635,142.49,142.45,2.7112715]
[1768491413498,10.9689948,142.49,142.45,2.7112715]
[1768491414404,35.53039829,142.5,142.45,2.7112715]
[1768491414713,36.00312391,142.5,142.45,2.7112715]
[1768491414903,35.53039829,142.5,142.45,2.7112715]
[1768491415699,7.01754385,142.5,142.45,9.73122511]
[1768491415899,7.01754385,142.5,142.46,15.5112715]
[1768491416106,7.01754385,142.5,142.46,12.8]
[1768491416320,7.01754385,142.5,142.47,2.7112715]
[1768491416617,7.01754385,142.5,142.47,2.6812715]
[1768491417123,7.01706414,142.51,142.47,2.6812715]
[1768491417804,17.98605894,142.51,142.47,2.6812715]
[1768491418011,35.52868752,142.51,142.47,2.6812715]
[1768491418726,35.52868752,142.51,142.47,2.6512715]
[1768491419330,10.9689948,142.5,142.46,12.8]
[1768491420214,25.11680371,142.51,142.46,12.8]
[1768491420414,7.01706414,142.51,142.46,23.7689948]
[1768491420813,7.01706414,142.51,142.47,2.7112715]
[1768491421423,17.98605894,142.51,142.47,15.5112715]
[1768491421606,18.55253646,142.51,142.47,12.8]
[1768491421805,36.09516504,142.51,142.47,12.8]
[1768491422821,11.5400919,142.5,142.44,2.7112715]
[1768491423023,11.54465842,142.47,142.42,2.71127151]
[1768491423225,11.54465842,142.47,142.42,1e-08]
[1768491423226,7.02049985,142.44,142.42,1e-08]
[1768491424230,10.9689948,142.43,142.4,0.2]
[1768491424405,20.72437975,142.44,142.4,0.2]
[1768491424601,38.27562939,142.44,142.4,0.2]
[1768491425009,13.7038799,142.42,142.37,0.1]
[1768491425233,2.7348851,142.4,142.37,0.1]
[1768491425413,7.02296509,142.39,142.37,0.1]
[1768491425608,44.0587571,142.42,142.37,0.1]
[1768491425808,7.0221538,142.41,142.37,0.1]
[1768491426332,7.0221538,142.41,142.37,2.8112715]
[1768491426529,7.02158293,142.42,142.38,2.7112715]
[1768491426746,28.52084113,142.44,142.39,2.7112715]
[1768491426747,19.82067909,142.44,142.39,2.7112715]
[1768491427243,20.72397859,142.45,142.4,2.7112715]
[1768491427442,19.81902154,142.47,142.42,2.7112715]
[1768491427644,30.78801634,142.47,142.42,2.6812715]
[1768491428428,7.01902154,142.47,142.42,17.99020973]
[1768491428730,7.01902154,142.47,142.43,10.9689948]
[1768491429121,12.8,142.49,142.43,10.9689948]
[1768491429307,12.8,142.49,142.44,10.9689948]
[1768491429632,12.8,142.49,142.44,13.6802663]
[1768491429819,12.8,142.49,142.45,2.7112715]
[1768491430219,19.81808104,142.49,142.45,2.6812715]
[1768491431428,2.7348851,142.53,142.47,10.9689948]
[1768491431623,2.7348851,142.53,142.42,12.8]
[1768491431624,30.78506159,142.53,142.46,10.9689948]
[1768491431930,22.55095189,142.53,142.46,10.9689948]
[1768491432234,19.81606679,142.53,142.49,2.7112715]
[1768491432442,19.81606679,142.53,142.49,2.6812715]
[1768491432611,7.01606679,142.53,142.49,2.6812715]
[1768491433124,7.01606679,142.53,142.49,2.6512715]
[1768491436026,19.8157096,142.54,142.5,2.7112715]
[1768491436219,7.01503584,142.56,142.51,13.6802663]
[1768491436529,33.51891574,142.56,142.49,7.0178522]
[1768491436733,33.51891574,142.56,142.49,17.986847]
[1768491436912,51.0553916,142.56,142.5,7.0175312]
[1768491437530,51.0553916,142.56,142.49,17.98684388]
[1768491437746,10.9689948,142.54,142.48,7.01839216]
[1768491438039,10.9689948,142.54,142.48,17.98738696]
[1768491438249,10.9689948,142.55,142.49,10.9689948]
[1768491438543,38.2583909,142.54,142.48,2.7112715]
[1768491438747,10.9689948,142.53,142.48,2.7112715]
[1768491438915,7.01528155,142.55,142.5,10.9689948]
[1768491439968,7.01528155,142.55,142.5,17.98651064]
[1768491440468,12.8,142.56,142.52,10.9689948]
[1768491440639,7.01311452,142.59,142.54,10.9389948]
[1768491440834,19.81311452,142.59,142.55,2.73550358]
[1768491442567,2.79655511,142.55,142.48,20.72296957]
[1768491442742,2.79655511,142.53,142.47,2.73550358]
[1768491443062,2.79655511,142.5,142.45,2.73550358]
[1768491443267,2.79655511,142.5,142.43,2.73550358]
[1768491443268,2.79655511,142.49,142.43,2.73550358]
[1768491443458,13.76554991,142.49,142.43,9.75646428]
[1768491443660,13.76554991,142.49,142.43,20.72545908]
[1768491444061,2.79655511,142.49,142.43,20.72545908]
[1768491444359,33.22613255,142.5,142.43,20.72524198]
[1768491444665,2.88119508,142.49,142.44,13.91479922]
[1768491444853,38.41331711,142.49,142.43,10.9689948]
[1768491445055,10.9689948,142.48,142.43,2.94580442]
[1768491445470,2.88119508,142.47,142.41,2.94580442]
[1768491445652,2.88119508,142.47,142.41,20.93676437]
[1768491446047,2.88119508,142.47,142.42,13.91479922]
[1768491446476,19.81949905,142.47,142.43,10.9689948]
[1768491446652,19.81949905,142.47,142.42,13.91479922]
[1768491446968,2.88119508,142.46,142.42,10.9689948]
[1768491447554,37.36705292,142.47,142.42,10.9689948]
[1768491447761,40.248248,142.47,142.41,9.9677075]
[1768491447955,40.248248,142.47,142.42,10.9689948]
[1768491448158,2.88119508,142.46,142.41,2.94580442]
[1768491448376,7.02000702,142.45,142.42,10.9689948]
[1768491449674,7.02000702,142.45,142.41,2.94580442]
[1768491449856,7.02000702,142.45,142.41,13.91479922]
[1768491450168,7.02000702,142.45,142.41,2.94580442]
[1768491450383,13.85018988,142.44,142.39,2.94580442]
[1768491450690,7.02099276,142.43,142.39,13.91479922]
[1768491451489,7.02059169,142.44,142.4,2.94580442]
[1768491451651,17.98958649,142.44,142.4,2.94580442]
[1768491452384,7.01996527,142.46,142.4,2.94580442]
[1768491452691,7.01996527,142.46,142.41,2.94580442]
[1768491452854,7.01996527,142.46,142.42,2.94580442]
[1768491453063,17.98896007,142.46,142.42,2.94580442]
[1768491454650,7.01905368,142.47,142.43,2.94580442]
[1768491454850,19.81905368,142.47,142.43,13.91479922]
[1768491455051,30.78804848,142.47,142.43,2.94580442]
[1768491455669,19.81905368,142.47,142.43,2.94580442]
[1768491455868,30.78804848,142.47,142.43,2.94580442]
[1768491456672,13.85018988,142.46,142.41,2.94580442]
[1768491456973,10.9689948,142.45,142.41,2.94580442]
[1768491457366,2.88119508,142.46,142.41,2.94580442]
[1768491457568,44.12457704,142.47,142.42,2.94580442]
[1768491457963,47.00577212,142.47,142.42,2.94580442]
[1768491458588,9.63916457,142.46,142.4,2.94580442]
[1768491458884,7.02000702,142.45,142.41,2.94580442]
[1768491459386,7.0195777,142.46,142.41,2.94580442]
[1768491459884,19.81915689,142.47,142.43,2.94580442]
[1768491461472,2.88119508,142.43,142.38,2.94580442]
[1768491461778,6.75796949,142.43,142.39,2.94580442]
[1768491462175,6.75796949,142.43,142.39,9.96868115]
[1768491462359,6.75796949,142.44,142.39,9.96868115]
[1768491462557,19.81915689,142.47,142.42,7.02145675]
[1768491462777,13.77712638,142.47,142.43,2.94580442]
[1768491464261,19.8186776,142.48,142.44,2.94580442]
[1768491464574,12.8,142.48,142.45,2.94580442]
[1768491464772,19.81852954,142.48,142.45,2.94580442]
[1768491465574,7.01852954,142.48,142.45,2.94580442]
[1768491465774,13.77589145,142.5,142.46,2.94580442]
[1768491466571,6.75796949,142.49,142.46,2.94580442]
[1768491466774,7.01792196,142.5,142.46,2.94580442]
[1768491466969,6.75796949,142.48,142.45,2.94580442]
[1768491468686,7.01803635,142.49,142.45,2.94580442]
[1768491468986,17.5417519,142.52,142.46,2.94580442]
[1768491469283,24.29972139,142.52,142.47,2.94580442]
[1768491469480,6.75796949,142.51,142.47,2.94580442]
[1768491469781,24.29972139,142.52,142.47,2.94580442]
[1768491470087,7.01712525,142.51,142.47,2.94580442]
[1768491472172,7.01712525,142.51,142.47,9.70377391]
[1768491472361,7.01712525,142.51,142.47,2.94580442]
[1768491473162,34.31039363,142.51,142.45,2.95708511]
[1768491473360,6.75796949,142.5,142.45,9.7150546]
[1768491473583,6.75796949,142.5,142.45,16.73503432]
[1768491473883,6.75796949,142.5,142.46,2.95708511]
[1768491474192,27.55242414,142.51,142.46,2.95708511]
[1768491474688,34.31039363,142.51,142.46,2.95708511]
[1768491475288,30.19958514,142.51,142.46,2.95708511]
[1768491476983,2.99267031,142.49,142.45,7.01997972]
[1768491477178,2.99267031,142.49,142.44,9.9773819]
[1768491477378,2.99267031,142.49,142.42,12.8]
[1768491477379,5.63983131,142.47,142.42,2.95708511]
[1768491477592,2.99267031,142.47,142.42,2.95708511]
[1768491477890,5.63983131,142.47,142.42,2.95708511]
[1768491478075,2.99267031,142.47,142.43,2.95708511]
[1768491478273,2.99267031,142.48,142.43,12.62505966]
[1768491478478,12.65865073,142.48,142.43,9.66797455]
[1768491478675,2.647161,142.47,142.43,2.95708511]
[1768491478877,2.647161,142.46,142.41,12.62610717]
[1768491479081,2.647161,142.45,142.41,2.95708511]
[1768491479282,6.75800365,142.45,142.41,2.95708511]
[1768491479479,9.75067396,142.45,142.41,2.95708511]
[1768491479887,6.75800365,142.44,142.39,2.95708511]
[1768491480090,9.75067396,142.43,142.39,2.95708511]
[1768491480271,6.75800365,142.42,142.39,2.95708511]
[1768491480590,13.77902882,142.43,142.39,2.95708511]
[1768491481274,16.77169913,142.43,142.39,2.95708511]
[1768491481474,16.77169913,142.43,142.37,10.08086802]
[1768491481790,6.75800365,142.41,142.37,0.1]
[1768491481982,6.75800365,142.41,142.37,3.05708511]
[1768491482186,9.75067396,142.42,142.38,2.95708511]
[1768491482381,2.99267031,142.42,142.38,2.95708511]
[1768491482586,9.75067396,142.42,142.38,2.95708511]
[1768491482789,13.7798454,142.42,142.38,2.95708511]
[1768491482989,7.02184175,142.42,142.38,2.95708511]
[1768491483485,6.75800365,142.4,142.37,0.1]
[1768491484269,6.75800365,142.4,142.37,3.05708511]
[1768491484698,6.75800365,142.39,142.37,0.1]
[1768491484896,7.02296509,142.39,142.37,0.1]
[1768491485104,13.78096874,142.39,142.37,0.1]
[1768491485593,6.75800365,142.38,142.33,3.15708511]
[1768491485892,44.13838147,142.39,142.34,2.95708511]
[1768491486095,6.75800365,142.38,142.34,2.95708511]
[1768491486875,19.82296509,142.39,142.35,9.71508876]
[1768491487075,19.82296509,142.39,142.35,2.95708511]
[1768491487599,26.58096874,142.39,142.35,2.95708511]
[1768491487809,6.75800365,142.38,142.33,3.15708511]
[1768491487983,6.75800365,142.37,142.33,3.15708511]
[1768491488181,37.38037782,142.39,142.33,0.2]
[1768491488182,6.75800365,142.35,142.33,0.2]
[1768491488676,15.79267031,142.36,142.32,17.95150755]
[1768491488887,19.82485478,142.36,142.32,20.90859266]
[1768491489573,19.8244982,142.36,142.33,2.95708511]
[1768491490479,7.0244982,142.36,142.33,2.95708511]
[1768491490683,6.75800365,142.39,142.35,2.95708511]
[1768491490879,19.82299839,142.39,142.35,2.95708511]
[1768491491074,12.8,142.39,142.35,9.98195557]
[1768491491300,12.8,142.39,142.36,2.95708511]
[1768491491301,19.82311873,142.39,142.36,2.95708511]
[1768491491496,7.02311873,142.39,142.36,2.95708511]
[1768491492807,9.75067396,142.38,142.34,2.95708511]
[1768491493004,6.75800365,142.38,142.34,2.95708511]
[1768491493803,13.78175946,142.38,142.34,2.95708511]
[1768491493990,29.57442977,142.38,142.32,47.49285279]
[1768491494190,9.75067396,142.37,142.33,2.95708511]
[1768491494481,19.82375581,142.38,142.27,66.94408856]
[1768491494482,2.99267031,142.33,142.28,9.98500481]
[1768491494685,2.99267031,142.37,142.3,2.95708511]
[1768491494885,2.99267031,142.36,142.31,2.95708511]
[1768491495185,40.37507199,142.38,142.32,2.95708511]
[1768491495485,6.75800365,142.36,142.32,2.95708511]
[1768491496006,13.78292489,142.36,142.32,2.95708511]
[1768491496505,6.75800365,142.35,142.3,2.95708511]
[1768491496803,12.82,142.35,142.3,2.95708511]
[1768491497012,22.57067396,142.35,142.3,2.95708511]
[1768491497189,6.75800365,142.34,142.3,2.95708511]
[1768491497786,6.75800365,142.35,142.3,2.95708511]
[1768491498109,10.01791992,142.35,142.31,2.95708511]
[1768491498306,16.77592357,142.35,142.31,2.95708511]
[1768491498520,9.75067396,142.34,142.29,2.95708511]
[1768491498694,2.99267031,142.3,142.27,0.1]
[1768491498899,6.75800365,142.29,142.27,0.1]
[1768491499111,6.75800365,142.28,142.27,0.1]
[1768491499308,2.99267031,142.29,142.27,0.1]
[1768491499621,9.75067396,142.28,142.27,1e-08]
[1768491499802,9.75067396,142.28,142.15,61.5]
[1768491499803,2.99267031,142.27,142.15,2.95708511]
[1768491499990,19.57800365,142.28,142.17,7.13369413]
[1768491499991,2.99267031,142.22,142.17,7.13369413]
[1768491500189,2.99267031,142.22,142.17,10.09077924]
[1768491500618,2.99267031,142.22,142.17,0.1]
[1768491500619,2.99267031,142.19,142.17,0.1]
[1768491500911,6.75800365,142.22,142.18,3.03322686]
[1768491501098,10.01555068,142.23,142.18,3.03322686]
[1768491501297,19.85087345,142.23,142.19,3.03322686]
[1768491501498,2.98467723,142.25,142.19,3.03322686]
[1768491501707,2.98467723,142.24,142.19,3.03322686]
[1768491501906,6.75800365,142.23,142.19,3.03322686]
[1768491502090,13.78964586,142.22,142.19,3.03322686]
[1768491502285,2.98467723,142.21,142.17,0.1]
[1768491502490,9.74268088,142.2,142.17,0.1]
[1768491502700,24.61004187,142.22,142.14,15.85322686]
[1768491502701,9.74268088,142.19,142.14,15.85322686]
[1768491503014,9.74268088,142.16,142.1,9.79123051]
[1768491503207,24.61004187,142.22,142.13,3.03322686]
[1768491503208,2.98467723,142.21,142.13,3.03322686]
[1768491503388,2.98467723,142.21,142.14,9.79123051]
[1768491503593,2.98467723,142.2,142.12,3.03322686]
[1768491503814,9.74268088,142.16,142.1,3.03322686]
[1768491503998,12.82,142.17,142.08,16.82910919]
[1768491504199,7.03432751,142.16,142.08,3.03322686]
[1768491504400,6.75800365,142.11,142.07,0.238924]
[1768491504599,6.69800365,142.11,142.07,0.238924]
[1768491504800,12.82,142.13,142.01,2.97683943]
[1768491504999,12.82,142.13,142.03,2.97683943]
[1768491505193,12.82,142.13,142.06,10.01601682]
[1768491505392,12.82,142.13,142.06,7.03917739]
[1768491505591,12.82,142.13,142.05,7.03967336]
[1768491505798,24.6201463,142.16,142.05,2.97683943]
[1768491505992,15.87834295,142.15,142.09,2.97683943]
[1768491506194,6.75800365,142.11,142.01,2.97683943]
[1768491506407,12.82,142.15,142.08,7.03812792]
[1768491506408,7.0353824,142.14,142.08,7.03812792]
[1768491506710,6.75800365,142.15,142.1,2.97683943]
[1768491506910,6.75800365,142.14,142.09,7.03764503]
[1768491507113,24.61668307,142.18,142.09,9.73484308]
[1768491507114,6.75800365,142.15,142.09,9.73484308]
[1768491507298,24.61668307,142.18,142.1,2.97683943]